Cogmind - Beta 9.6 @@@ ROGUE MODE // 2020.06.05 @ 11:59:49 Player: Wololo Result: Self-destructed Performance ------------- Evolutions (1) 500 Regions Visited (3) 600 Robots Destroyed (23) 115 Value Destroyed (573) 573 Prototype IDs (0) 0 Alien Tech Used (0) 0 Bonus (78) 78 TOTAL SCORE: 1866 Bonus ------- Follower Combat Kills 89 Friendly Fire -11 Cogmind --------- Core Integrity 242/400 Matter 286/300 Energy 100/100 System Corruption 0% Temperature Cool (0) Movement Walking (120) Location -9/Materials Parts ------- > --- POWER (1) -------- (None) > --- PROPULSION (3) --- Carbon-fiber Leg > --- UTILITY (3) ------ Small Storage Unit Core Shielding > --- WEAPON (2) ------- EMP Blaster Hammer > --- INVENTORY (6) ---- Deuterium Engine Improved Targeting Computer ECM Suite Shield Generator Grenade Launcher Datajack Peak State ------------ > --- POWER ------------ Deuterium Engine > --- PROPULSION ------- Carbon-fiber Leg Carbon-fiber Leg Carbon-fiber Leg > --- UTILITY ---------- Small Storage Unit Core Shielding Light Armor Plating > --- WEAPON ----------- Small Laser Hammer > --- INVENTORY -------- Deuterium Engine Improved Targeting Computer ECM Suite Shield Generator Grenade Launcher Datajack [Rating: 18] Favorites ----------- Power Ion Engine Engine Ion Engine Propulsion Light Treads Treads Light Treads Leg Carbon-fiber Leg Utility Small Storage Unit Storage Small Storage Unit Protection Core Shielding Weapon Small Laser Energy Gun Small Laser Ballistic Gun Assault Rifle Launcher EMP Blaster Impact Weapon Hammer Build | -11 -10 -10 -9 ------- Run | Scr Mat Min Mat Slots Evolved 2 | . . . 2 Power . | . . . . Propulsion 1 | . . . 1 Utility 1 | . . . 1 Weapon . | . . . . Parts Attached 18 | 4 3 1 10 Power 3 | 1 1 . 1 Engine 3 | 1 1 . 1 Core . | . . . . Reactor . | . . . . Propulsion 7 | 2 . . 5 Treads 4 | 2 . . 2 Leg 3 | . . . 3 Wheel . | . . . . Hover . | . . . . Flight . | . . . . Utility 3 | 1 . 1 1 Device . | . . . . Storage 1 | 1 . . . Processor . | . . . . Hackware . | . . . . Protection 2 | . . 1 1 Artifact . | . . . . Weapon 5 | . 2 . 3 Energy Gun 1 | . 1 . . Energy Cannon . | . . . . Ballistic Gun 1 | . 1 . . Ballistic Cannon . | . . . . Launcher 2 | . . . 2 Special Weapon . | . . . . Impact Weapon 1 | . . . 1 Slashing Weapon . | . . . . Piercing Weapon . | . . . . Special Melee Weapon . | . . . . Unidentified Prototypes . | . . . . Parts Lost 5 | . . . 5 Power 1 | . . . 1 Propulsion 2 | . . . 2 Utility 1 | . . . 1 Weapon 1 | . . . 1 Highest Loss Streak 5 | . . . 5 Average Slot Usage (%) 88 | . 84 98 86 Engine 12 | . 14 14 9 Treads 20 | . 28 28 9 Leg 6 | . . . 15 Storage 12 | . 14 14 11 Protection 10 | . . 13 18 Energy Gun 11 | . 13 14 9 Ballistic Gun 8 | . 13 14 . Impact Weapon 4 | . . . 10 Naked Turns . | . . . . Heaviest Build 20 | 7 12 13 20 Greatest Support 46 | 40 40 40 46 Greatest Overweight (x) 1 | . . . 1 Average Overweight (x) . | . . . . Largest Inventory Capacity 6 | 6 6 6 6 Average Capacity 5 | 5 6 6 6 Most Carried 6 | 4 6 6 6 Average Carried 5 | 3 4 5 5 Final Capacity 6 | 6 6 6 6 Final Carried 6 | 4 6 6 6 Class Distribution -------------------- 100% | Mutant Dominant Class ---------------- Mutant | -10/Materials Mutant | -10/Mines Mutant | -9/Materials Resources | -11 -10 -10 -9 ----------- Run | Scr Mat Min Mat Matter Collected 523 | 204 142 23 154 Remotely . | . . . . Salvage Created 669 | . 367 27 275 Parts 42 | . 22 2 18 Haulers Intercepted 1 | . . . 1 Recyclers Shooed . | . . . . Parts Field Recycled . | . . . . Retrieved Matter . | . . . . Parts Self-Destructed . | . . . . Prevented . | . . . . Kills | -11 -10 -10 -9 ------- Run | Scr Mat Min Mat Combat Hostiles Destroyed 19 | . 8 2 9 Melee 2 | . . . 2 Guns 14 | . 8 2 4 AOE 3 | . . . 3 Classes Destroyed 7 | . 4 1 2 Worker 1 | . 1 . . Tunneler 1 | . 1 . . Hauler 1 | . . . 1 Operator 1 | . 1 . . Swarmer 6 | . . 2 4 Grunt 11 | . 8 . 3 Sentry 2 | . . . 2 Best Kill Streak 5 | . 5 2 4 Combat Bots Only 3 | . 3 2 3 Max Kills in Single Turn 2 | . 2 1 2 Gunslinging 1 | . 1 . . Exploded 2 | . . . 2 Melee 1 | . . . 1 Uniques/NPCs Destroyed . | . . . . Combat | -11 -10 -10 -9 -------- Run | Scr Mat Min Mat Damage Taken 1099 | . 156 137 806 Core 208 | . 10 40 158 Absorbed by Shields . | . . . . Core Remaining (%) 90 | 100 . 80 . Volleys Fired 64 | . 27 6 31 Largest 2 | . 2 2 1 Hottest 60 | . 60 60 40 Shots Fired 96 | . 53 12 31 Gun 87 | . 53 12 22 Cannon . | . . . . Launcher 9 | . . . 9 Special . | . . . . Kinetic 33 | . 27 6 . Thermal 54 | . 26 6 22 Explosive 7 | . . . 7 Electromagnetic 2 | . . . 2 Robot Hit Streak 12 | . 12 3 8 Robot Miss Streak 3 | . 2 2 3 Penetration Max . | . . . . Secondary Targets 3 | . 2 1 . Max Gunslinging Chain 1 | . 1 1 . Shots Hit Robots 72 | . 39 7 26 Core Hits 40 | . 20 2 18 Critical Hits . | . . . . Critical Kills . | . . . . Critical Parts Destroyed . | . . . . Melee Attacks 10 | . . . 10 Impact 10 | . . . 10 Slashing . | . . . . Piercing . | . . . . Sneak Attacks . | . . . . Combat Hostiles . | . . . . Follow-up Attacks . | . . . . Damage Inflicted 1110 | . 502 75 533 Guns 754 | . 501 73 180 Cannons . | . . . . Explosions 251 | . . . 251 Melee 102 | . . . 102 Ramming 3 | . 1 2 . Kinetic 319 | . 288 31 . Thermal 435 | . 213 42 180 Explosive 220 | . . . 220 Electromagnetic 31 | . . . 31 Impact 102 | . . . 102 Slashing . | . . . . Piercing . | . . . . Highest Corruption . | . . . . Average Corruption . | . . . . Corruption Purged . | . . . . Overload Shots . | . . . . Overflow Damage . | . . . . Projectiles . | . . . . Explosions . | . . . . Melee . | . . . . Knockbacks . | . . . . Impact . | . . . . Kinetic . | . . . . Secondary . | . . . . Self-Inflicted Damage 14 | . . . 14 Shots 1 | . . . 1 Rammed 2 | . 1 1 . Targets Rammed 2 | . 1 1 . Kicked . | . . . . Crushed . | . . . . Highest Temperature 103 | . 24 . 103 Average Temperature 23 | . 9 . 33 Received Heat Transfer 375 | . 84 . 291 Siege Activations . | . . . . Robots Corrupted . | . . . . Combat Hostiles . | . . . . Parts Fried . | . . . . Impact Corruptions . | . . . . Robots Melted . | . . . . Combat Hostiles . | . . . . Parts Melted 3 | . . 1 2 Heat Transferred 975 | . 475 100 400 Parts Sabotaged . | . . . . Parts Stolen . | . . . . Parts Stripped . | . . . . Power Chain Reactions . | . . . . Missiles Intercepted . | . . . . Alert | -11 -10 -10 -9 ------- Run | Scr Mat Min Mat Peak Influence 200 | . 200 63 184 Average Influence 58 | . 69 35 74 Maximum Alert Level 1 | . 1 . . Low Security (%) 96 | 100 88 100 100 Level 1 3 | . 11 . . Level 2 . | . . . . Level 3 . | . . . . Level 4 . | . . . . Level 5 . | . . . . High Security . | . . . . Max Security . | . . . . Squads Dispatched 6 | . 5 . 1 Investigation 3 | . 2 . 1 Extermination . | . . . . Reinforcement 3 | . 3 . . Assault . | . . . . Garrison . | . . . . Intercept . | . . . . Construction Impeded . | . . . . Haulers Reinforced . | . . . . Stealth | -11 -10 -10 -9 --------- Run | Scr Mat Min Mat Distress Signals 3 | . 2 . 1 Communications Jammed . | . . . . Distress Signals . | . . . . Times Spotted 36 | . 15 3 18 Peak Tracking Total 5 | . 5 3 5 Tactical Retreats . | . . . . Traps | -11 -10 -10 -9 ------- Run | Scr Mat Min Mat Traps Triggered 3 | . 2 . 1 Indirectly . | . . . . Trap Hack Attempts . | . . . . Triggered . | . . . . Disarmed . | . . . . Reprogrammed . | . . . . Reused . | . . . . Traps Extracted . | . . . . Installed . | . . . . Triggered . | . . . . Machines | -11 -10 -10 -9 ---------- Run | Scr Mat Min Mat Machines Disabled 1 | . . . 1 Max in Single Turn 1 | . . . 1 Machines Sabotaged . | . . . . Garrisons Compromised . | . . . . Overloaded Fab Kills . | . . . . Fab Network Shutdowns . | . . . . Hacking | -11 -10 -10 -9 --------- Run | Scr Mat Min Mat Machines Accessed 3 | . 2 . 1 Terminals 3 | . 2 . 1 Fabricators . | . . . . Repair Stations . | . . . . Recycling Units . | . . . . Scanalyzers . | . . . . Garrison Access . | . . . . Total Hacks 11 | . 5 . 6 Successful 6 | . 2 . 4 Failed 5 | . 3 . 2 Catastrophic 2 | . . . 2 Database Lockouts . | . . . . Manual . | . . . . Terminals 11 | . 5 . 6 Fabricators . | . . . . Repair Stations . | . . . . Recycling Units . | . . . . Scanalyzers . | . . . . Garrison Access . | . . . . Terminal Hacks 6 | . 2 . 4 Record 1 | . 1 . . Maintenance Status 1 | . . . 1 Patrol Status 1 | . . . 1 Hauler Manifests 2 | . 1 . 1 Zone Layout 1 | . . . 1 Fabricator Hacks . | . . . . Repair Station Hacks . | . . . . Recycling Unit Hacks . | . . . . Scanalyzer . | . . . . Garrison Access Hacks . | . . . . Unauthorized Hacks . | . . . . Terminals . | . . . . Fabricators . | . . . . Repair Stations . | . . . . Recycling Units . | . . . . Scanalyzers . | . . . . Garrison Access . | . . . . Data Cores Recovered . | . . . . Used . | . . . . Hacking Detections 3 | . 2 . 1 Full Trace Events . | . . . . Feedback Events . | . . . . Feedback Blocked . | . . . . Robot Schematics Acquired . | . . . . Robots Built . | . . . . Matter . | . . . . Time . | . . . . Total Robot Build Rating . | . . . . Part Schematics Acquired . | . . . . Parts Built . | . . . . Matter . | . . . . Time . | . . . . Total Part Build Rating . | . . . . Parts Repaired . | . . . . Time . | . . . . Parts Recycled . | . . . . Recycled Matter . | . . . . Retrieved Matter . | . . . . Retrieved Components . | . . . . Parts Scanalyzed . | . . . . Part Schematics Acquired . | . . . . Parts Damaged . | . . . . Bothacking | -11 -10 -10 -9 ------------ Run | Scr Mat Min Mat Used RIF Installer . | . . . . Robots Hacked . | . . . . Non-combat . | . . . . Combat . | . . . . Robot Hacks Applied . | . . . . Relay Couplers Released . | . . . . Robots Rewired . | . . . . Allies Hacked . | . . . . Hacks Repelled . | . . . . Allies | -11 -10 -10 -9 -------- Run | Scr Mat Min Mat Total Allies 2 | . . 2 . Largest Group 2 | . . 2 2 Highest-Rated Group 54 | . . 54 54 Highest-Rated Ally 31 | . . 31 31 Total Orders . | . . . . Ally Attacks 21 | . . . 21 Total Damage 330 | . . . 330 Kills 5 | . . . 5 Allies Corrupted . | . . . . Allies Melted . | . . . . Intel | -11 -10 -10 -9 ------- Run | Scr Mat Min Mat Robot Analysis Total . | . . . . Derelict Logs Recovered . | . . . . Drone Launches . | . . . . Drone Recoveries . | . . . . Exploration | -11 -10 -10 -9 ------------- Run | Scr Mat Min Mat Turns Passed 1508 | 141 512 278 577 Spaces Moved 749 | 69 216 153 311 Core 6 | 6 . . . Treads 567 | 63 216 153 135 Legs 176 | . . . 176 Wheels . | . . . . Hover . | . . . . Flight . | . . . . Fastest Speed 50 | 50 160 160 120 Average Speed 149 | 150 160 160 137 Slowest Speed 160 | 160 160 160 160 Overloaded Moves . | . . . . Propulsion Burnouts . | . . . . Robots Hopped . | . . . . Cave-ins Triggered . | . . . . Exploration Rate (%) 32 | 6 47 44 34 Regions Visited 3 Branch Regions 1 Pre-discovered Areas . | . . . . Known Exits Taken . | . . . . Unknown Exits Taken 3 | 1 1 1 . Scrap Searched 2 | . . 2 . Spaces Dug . | . . . . Terrain Destroyed 40 | . . . 40 Melee . | . . . . Projectile . | . . . . AOE 40 | . . . 40 Actions | -11 -10 -10 -9 --------- Run | Scr Mat Min Mat Total 1028 | 106 329 174 419 Wait 144 | 26 77 11 30 Move 746 | 68 215 152 311 Hop . | . . . . Pick Up 30 | 8 5 2 15 Fast Attach . | . . . . Attach 16 | 4 2 1 9 Detach . | . . . . Swap 2 | . 1 . 1 Drop 14 | . 1 1 12 Fire 64 | . 27 6 31 Melee 10 | . . . 10 Ram . | . . . . Kick . | . . . . Crush 2 | . 1 1 . Escape Stasis . | . . . . Rewire . | . . . . Trap . | . . . . Miscellaneous . | . . . . Route ------- -11/Scrapyard -10/Materials -10/Mines (discovered 2 exits: *Mat x2) -9/Materials (discovered 1 exit: [*Mat]) History --------- Turn | Location | Event 37 | -11/Scrapyard | Discovered new exit (range 16) 142 | -11/Scrapyard | Entered Materials 305 | -10/Materials | Build established: Mutant 447 | -10/Materials | Discovered new exit (range 7) 654 | -10/Materials | Entered Mines 654 | -10/Mines | Discovered new exit (range 15) 785 | -10/Mines | Assembled infested the area 848 | -10/Mines | Discovered new exit (range 7) 932 | -10/Mines | Entered Materials 932 | -9/Materials | Accompanied by 2 allies 932 | -9/Materials | Evolved 2 slots: Propulsion x1, Utility x1 937 | -9/Materials | Led the pair of lost Derelicts to an unsafe place 1485 | -9/Materials | Lost 5 parts (1p2n1u1w) 1499 | -9/Materials | Discovered new exit (range 16) 1509 | -9/Materials | Self-destructed Last Messages --------------- U-05 Engineer builds a Wall. U-05 Engineer lays Concrete. Carbon-fiber Leg destroyed. U-05 Engineer lays Concrete. U-05 Engineer builds a Wall. U-05 Engineer lays Concrete. U-05 Engineer builds a Wall. The unstable cave ceiling collapses. Y-45 Defender misfires. The unstable cave ceiling collapses. Y-45 Defender misfires. Y-45 Defender destroyed. Acquired 34 matter. U-05 Engineer builds a Wall. U-05 Engineer lays Concrete. U-05 Engineer builds a Wall. EXIT=FOUND U-05 Engineer lays Concrete. U-05 Engineer builds a Wall. U-05 Engineer lays Concrete. Map ----- +----------------------------------------------------+ | ??# #???????????????????? | | ??# #???????????????????? | | ??# ! #???????????????????? | | ??# #???????????????????? | | ??# [ !#???????????????????? | | ### ! #???????????????????? | | + #???????????????????? | | ## ! #???????????????????? | | ######+#####???????????????????? | | [#??# #?????????????????????? | | *#### #?????????????????????? | | #?????????????????????? | | ##### #?????????####????????? | | ????# #?????????# ????????? | | ????## ##?????????# < ????????? | | ###### #??????????# ????????? | | ## #??????????+ +???????? | | "" ## #??????????# #???????? | | """ ## #??????????# #???????? | | """ ## #??????????# ######### | | """ ## #??????????# # # | | "" ## #??????????# # ! # | | !## #??????????# # # | | ## #??????????# # # | | ## #?????#????# # # | | ###### #?????# ???# /@ # | | # #?????# ???# # """ # | | # #??####/##?# # """"" # | | # #??# ?# # """"" ? | | # #??# T ?# # """""?? | | # #??# ?# # """ ?? | | "" # #??# ## #####???? | | "" # #??# ] # ###?????? | | # #??# [## # ##????? | | # ## #######+### #????? | | #????? | | ^ # #????? | | ^ ###????? | | # ############+### #?????? | | ## ##???????????? # #?????? | | ?###??????????? ########?????? | | ?????????????""" ?????????????? | | ?????????????""" ?????????????? | | ?????????????""" ?????????????? | | ????????????? ?????????????? | | ?????????????###?#??????????????? | | ????????????????????????????????? | | ????????????????????????????????? | | ????????????????????????????????? | | ????????????????????????????????? | +----------------------------------------------------+ Best States ------------- Heat Dissipation 28 Energy Generation 14 Energy Capacity 275 Matter Stores 300 Matter Capacity 300 Sight Range 16 Terrain Scan Density 10 Armor Coverage 150 Core Shielding 20 Evasion (%) 40 Recoil Reduction 2 Item Schematics ----------------- None Robot Schematics ------------------ None Fabricated ------------ Nothing Alien Tech Used ----------------- None Achievements -------------- None Challenges ------------ None Game ------ Seed DefenseSubatomicMallet Manual? 0 Play Time 00:20:36 Cumulative 6.9 hours Start 2020.06.05 @ 11:38:57 End 2020.06.05 @ 11:59:49 Sessions 1 Manual Loads 0 Difficulty Rogue Special Mode None Game No. 9 Rogue 5 Adventurer 4 Explorer 0 Win Type - Total 0 Types 0/0/0/0/0/0/0 Lore% 2 Gallery% 12 Achievement% 8 Wizard Run 0 Options --------- ASCII 0 Keyboard 0 Movement Mouse Keybinds 0 Fullscreen 2 Font 12/Terminus Map View 83x54 Tactical HUD 0 Map Filters NONE Filters NONE Steam 1 RUN: ac752cda-431e-4535-8e4f-54b38519275e